[Event "Fagernes Chess Open 2025"]
[Site "Fagernes"]
[Date "2025.04.17"]
[Round "6.9"]
[White "Andersen, Even Jorstad"]
[Black "Odden, Jan Ove"]
[Result "1-0"]
[Annotator "NA RC"]
[ECO "C54"]
[WhiteElo "1681"]
[BlackElo "1720"]
[PlyCount "67"]
[EventDate "2025.04.12"]
[EventCountry "NOR"]
[SourceTitle "playchess.com"]
[Source "ChessBase"]
[SourceQuality "1"]
[TimeControl "40/6000+30:2400+30"]

1. e4 {[%emt 0:01:30]} e5 {[%emt 0:00:08]} 2. Nf3 {[%emt 0:00:03]} Nc6 {[%emt 0:00:05]} 3. Bc4 {[%emt 0:00:01]} Nf6 {[%emt 0:00:17]} 4. d3 {[%emt 0:00:05]} Bc5 {[%emt 0:02:30]} 5. O-O {[%emt 0:00:07]} O-O {[%emt 0:01:30]} 6. c3 {[%emt 0:00:45]} Bb6 {[%emt 0:01:46]} 7. Nbd2 {[%emt 0:00:44]} d6 {[%emt 0:02:10]} 8. b4 {[%emt 0:02:42]} a6 {[%emt 0:02:47]} 9. a4 {[%emt 0:00:43]} Be6 {[%emt 0:01:12]} 10. h3 {[%emt 0:07:46]} h6 {[%emt 0:04:24]} 11. Bb2 {[%emt 0:03:29]} Qe7 {[%emt 0:03:25]} 12. Re1 {[%emt 0:03:41]} Rad8 {[%emt 0:03:04]} 13. Bxe6 {[%emt 0:06:02]} fxe6 {[%emt 0:01:15]} 14. Nc4 {[%emt 0:03:02]} Ba7 {[%emt 0:01:44]} 15. b5 {[%emt 0:01:49]} Nb8 {[%emt 0:01:20]} 16. Bc1 {[%emt 0:17:13]} Qf7 {[%emt 0:02:53]} 17. Qe2 {[%emt 0:03:39]} Nh5 {[%emt 0:03:23]} 18. d4 {[%emt 0:03:00]} Nd7 {[%emt 0:17:39]} 19. Ra2 {[%emt 0:01:51]} Nf4 {[%emt 0:05:31]} 20. Bxf4 {[%emt 0:02:03]} Qxf4 {[%emt 0:00:45]} 21. dxe5 {[%emt 0:06:11]} Nxe5 {[%emt 0:05:06]} 22. Ncxe5 {[%emt 0:01:20]} dxe5 {[%emt 0:00:13]} 23. bxa6 {[%emt 0:00:40]} bxa6 {[%emt 0:01:27]} 24. Qxa6 {[%emt 0:01:17]} Bb6 {[%emt 0:01:54]} 25. Qb5 {[%emt 0:03:34]} Rf6 {[%emt 0:04:22]} 26. a5 {[%emt 0:02:21]} Rg6 {[%emt 0:05:08]} 27. Kf1 {[%emt 0:04:39]} Ba7 {[%emt 0:11:46]} 28. Qb7 {[%emt 0:01:23]} Bb8 {[%emt 0:00:41]} 29. a6 {[%emt 0:00:46]} Rf8 {[%emt 0:00:31]} 30. a7 {[%emt 0:01:11]} Bxa7 {[%emt 0:01:28]} 31. Qxa7 {[%emt 0:01:11]} Rxg2 {[%emt 0:01:31]} 32. Qe3 {[%emt 0:02:15]} Rg3 {[%emt 0:08:32]} 33. Qxf4 {[%emt 0:02:05]} Rxf4 {[%emt 0:00:43]} 34. fxg3 {[%emt 0:00:05]} 1-0

[Event "Fagernes Chess Open 2025"]
[Site "Fagernes"]
[Date "2025.04.17"]
[Round "6.11"]
[White "Abrahamsson, Roaul"]
[Black "Lysen, Terje Kevin G"]
[Result "1-0"]
[Annotator "NA RC"]
[ECO "E62"]
[WhiteElo "1920"]
[BlackElo "1667"]
[PlyCount "67"]
[EventDate "2025.04.12"]
[EventCountry "NOR"]
[SourceTitle "playchess.com"]
[Source "ChessBase"]
[SourceQuality "1"]
[TimeControl "40/6000+30:2400+30"]

1. d4 {[%emt 0:00:16]} Nf6 {[%emt 0:00:07]} 2. c4 {[%emt 0:00:19]} g6 {[%emt 0:00:04]} 3. g3 {[%emt 0:00:15]} Bg7 {[%emt 0:00:11]} 4. Bg2 {[%emt 0:00:18]} O-O {[%emt 0:00:26]} 5. Nf3 {[%emt 0:00:14]} d6 {[%emt 0:00:20]} 6. O-O {[%emt 0:00:23]} Nc6 {[%emt 0:02:20]} 7. Nc3 {[%emt 0:01:08]} e5 {[%emt 0:00:34]} 8. dxe5 {[%emt 0:01:56]} dxe5 {[%emt 0:00:20]} 9. Bg5 {[%emt 0:02:54]} Be6 {[%emt 0:02:53]} 10. Nd5 {[%emt 0:07:02]} Bxd5 {[%emt 0:07:25]} 11. Bxf6 {[%emt 0:00:33]} Bxf6 {[%emt 0:00:09]} 12. cxd5 {[%emt 0:02:47]} Ne7 {[%emt 0:03:48]} 13. Ne1 {[%emt 0:01:29]} Nf5 {[%emt 0:03:26]} 14. e4 {[%emt 0:07:54]} Nd6 {[%emt 0:07:22]} 15. Nd3 {[%emt 0:01:06]} Bg7 {[%emt 0:05:47]} 16. Rc1 {[%emt 0:05:16]} Qd7 {[%emt 0:10:53]} 17. Qc2 {[%emt 0:09:41]} Rac8 {[%emt 0:04:08]} 18. Nc5 {[%emt 0:04:52]} Qe7 {[%emt 0:02:20]} 19. Bh3 {[%emt 0:09:32]} f5 {[%emt 0:00:09]} 20. Ne6 {[%emt 0:00:37]} Rf7 {[%emt 0:00:11]} 21. f3 {[%emt 0:08:33]} Bh6 {[%emt 0:04:25]} 22. Rcd1 {[%emt 0:07:25]} Be3+ {[%emt 0:05:15]} 23. Kh1 {[%emt 0:01:00]} Bb6 {[%emt 0:00:16]} 24. Qe2 {[%emt 0:07:20]} Re8 {[%emt 0:05:52]} 25. b3 {[%emt 0:01:27]} f4 {[%emt 0:07:43]} 26. gxf4 {[%emt 0:06:10]} exf4 {[%emt 0:00:54]} 27. Qd2 {[%emt 0:01:37]} Qh4 {[%emt 0:03:13]} 28. Qg2 {[%emt 0:02:07]} Rf6 {[%emt 0:02:44]} 29. e5 {[%emt 0:08:10]} Nf5 {[%emt 0:01:35]} 30. exf6 {[%emt 0:00:53]} Ne3 {[%emt 0:00:04]} 31. f7+ {[%emt 0:00:58]} Kxf7 {[%emt 0:00:12]} 32. Qb2 {[%emt 0:00:42]} Rg8 {[%emt 0:05:59]} 33. Bg2 {[%emt 0:00:10]} Nxd1 34. Rxd1 1-0

[Event "Fagernes Chess Open 2025"]
[Site "Fagernes"]
[Date "2025.04.17"]
[Round "6.12"]
[White "Lien, Benjamin"]
[Black "Ruud, Mikael"]
[Result "1-0"]
[Annotator "NA RC"]
[ECO "B03"]
[WhiteElo "1733"]
[BlackElo "1588"]
[PlyCount "79"]
[EventDate "2025.04.12"]
[EventCountry "NOR"]
[SourceTitle "playchess.com"]
[Source "ChessBase"]
[SourceQuality "1"]
[TimeControl "40/6000+30:2400+30"]

1. e4 {[%emt 0:02:36]} Nf6 {[%emt 0:00:48]} 2. e5 {[%emt 0:00:27]} Nd5 {[%emt 0:00:17]} 3. d4 {[%emt 0:00:10]} d6 {[%emt 0:00:06]} 4. c4 {[%emt 0:00:12]} Nb6 {[%emt 0:00:04]} 5. f4 {[%emt 0:00:14]} g6 {[%emt 0:02:00]} 6. Nf3 {[%emt 0:00:33]} Bg7 {[%emt 0:00:16]} 7. Be2 {[%emt 0:01:53]} O-O {[%emt 0:00:52]} 8. O-O {[%emt 0:00:05]} Be6 {[%emt 0:05:23]} 9. b3 {[%emt 0:06:33]} c6 {[%emt 0:03:37]} 10. Bb2 {[%emt 0:05:04]} d5 {[%emt 0:05:49]} 11. c5 {[%emt 0:03:50]} Nc8 {[%emt 0:01:44]} 12. Nbd2 {[%emt 0:00:16]} f6 {[%emt 0:05:35]} 13. Qe1 {[%emt 0:05:39]} Bf7 {[%emt 0:04:58]} 14. Bd3 {[%emt 0:01:46]} e6 {[%emt 0:00:55]} 15. Qg3 {[%emt 0:05:52]} Ne7 {[%emt 0:02:31]} 16. exf6 {[%emt 0:05:11]} Bxf6 {[%emt 0:01:58]} 17. Ne5 {[%emt 0:00:21]} Nf5 {[%emt 0:01:44]} 18. Qh3 {[%emt 0:03:33]} Nd7 {[%emt 0:08:23]} 19. Ndf3 {[%emt 0:01:36]} h5 {[%emt 0:10:21]} 20. Rae1 {[%emt 0:09:47]} Qc7 {[%emt 0:06:03]} 21. g4 {[%emt 0:16:26]} hxg4 {[%emt 0:01:33]} 22. Qxg4 {[%emt 0:00:42]} Kg7 {[%emt 0:02:06]} 23. Re2 {[%emt 0:12:15]} Rh8 {[%emt 0:01:38]} 24. Rg2 {[%emt 0:00:30]} Ne3 {[%emt 0:02:12]} 25. Qg3 {[%emt 0:00:05]} Nxg2 {[%emt 0:05:14]} 26. Bxg6 {[%emt 0:04:54]} Nxe5 {[%emt 0:09:02]} 27. Nxe5 {[%emt 0:00:07]} Bxe5 {[%emt 0:00:07]} 28. Bxf7+ {[%emt 0:00:07]} Kxf7 {[%emt 0:00:05]} 29. fxe5+ {[%emt 0:00:07]} Ke8 {[%emt 0:01:54]} 30. Qg6+ {[%emt 0:00:32]} Kd8 {[%emt 0:00:32]} 31. Rf7 {[%emt 0:03:08]} Qe7 {[%emt 0:06:24]} 32. Rxe7 {[%emt 0:01:29]} Kxe7 {[%emt 0:00:03]} 33. Qg7+ {[%emt 0:00:08]} Kd8 {[%emt 0:00:18]} 34. Qxh8+ {[%emt 0:00:06]} Kc7 {[%emt 0:01:27]} 35. Qxa8 {[%emt 0:00:07]} Nf4 {[%emt 0:00:15]} 36. Qf8 {[%emt 0:00:47]} Nd3 {[%emt 0:00:20]} 37. Qg7+ {[%emt 0:00:26]} Kd8 {[%emt 0:00:23]} 38. Qg8+ {[%emt 0:00:05]} Kc7 {[%emt 0:00:14]} 39. Qh7+ {[%emt 0:00:04]} Kd8 {[%emt 0:00:05]} 40. Qxd3 {[%emt 0:00:05]} 1-0

[Event "Fagernes Chess Open 2025"]
[Site "Fagernes"]
[Date "2025.04.17"]
[Round "6.13"]
[White "Bollestad, Leiv Ove"]
[Black "Stokhaug, Jon Arne"]
[Result "0-1"]
[Annotator "NA RC"]
[ECO "B10"]
[WhiteElo "1585"]
[BlackElo "1871"]
[PlyCount "132"]
[EventDate "2025.04.12"]
[EventCountry "NOR"]
[SourceTitle "playchess.com"]
[Source "ChessBase"]
[SourceQuality "1"]
[TimeControl "40/6000+30:2400+30"]

1. e4 {[%emt 0:00:10]} c6 {[%emt 0:04:30]} 2. b3 {[%emt 0:01:01]} d5 {[%emt 0:01:20]} 3. exd5 {[%emt 0:00:16]} cxd5 {[%emt 0:00:04]} 4. Bb2 {[%emt 0:00:07]} Nc6 {[%emt 0:00:07]} 5. Nf3 {[%emt 0:00:24]} Bg4 {[%emt 0:00:46]} 6. Be2 {[%emt 0:02:09]} e6 {[%emt 0:00:29]} 7. O-O {[%emt 0:00:36]} Nf6 {[%emt 0:00:32]} 8. Re1 {[%emt 0:05:01]} Bd6 {[%emt 0:02:00]} 9. h3 {[%emt 0:01:16]} Bh5 {[%emt 0:00:16]} 10. Nc3 {[%emt 0:03:30]} a6 {[%emt 0:00:42]} 11. Nd4 {[%emt 0:05:43]} Bxe2 {[%emt 0:06:11]} 12. Ndxe2 {[%emt 0:03:30]} O-O {[%emt 0:00:47]} 13. Ng3 {[%emt 0:00:46]} Rc8 {[%emt 0:04:31]} 14. Nh5 {[%emt 0:09:19]} Be7 {[%emt 0:04:16]} 15. Na4 {[%emt 0:06:16]} Nxh5 {[%emt 0:17:37]} 16. Qxh5 {[%emt 0:00:52]} Bf6 {[%emt 0:00:36]} 17. Bxf6 {[%emt 0:02:53]} Qxf6 {[%emt 0:00:12]} 18. Nc5 {[%emt 0:00:12]} Rc7 {[%emt 0:03:01]} 19. c3 {[%emt 0:02:04]} Ne7 {[%emt 0:07:23]} 20. b4 {[%emt 0:07:23]} Nf5 {[%emt 0:04:30]} 21. Qe2 {[%emt 0:00:57]} Rfc8 {[%emt 0:04:53]} 22. Nd3 {[%emt 0:14:27]} d4 {[%emt 0:02:38]} 23. Nf4 {[%emt 0:00:59]} g6 {[%emt 0:02:57]} 24. b5 {[%emt 0:04:01]} axb5 {[%emt 0:02:04]} 25. Qxb5 {[%emt 0:01:42]} Nd6 {[%emt 0:08:13]} 26. Qe5 {[%emt 0:04:54]} Qxe5 {[%emt 0:00:15]} 27. Rxe5 {[%emt 0:00:06]} dxc3 {[%emt 0:00:16]} 28. dxc3 {[%emt 0:00:34]} Rxc3 {[%emt 0:00:15]} 29. a4 {[%emt 0:01:28]} Rc1+ {[%emt 0:01:18]} 30. Rxc1 {[%emt 0:00:09]} Rxc1+ {[%emt 0:00:04]} 31. Kh2 {[%emt 0:00:14]} Rc4 {[%emt 0:00:44]} 32. Nxe6 {[%emt 0:01:26]} fxe6 {[%emt 0:00:11]} 33. Rxe6 {[%emt 0:00:13]} Rc6 {[%emt 0:01:08]} 34. Re7 {[%emt 0:00:38]} b6 {[%emt 0:01:30]} 35. Ra7 {[%emt 0:01:04]} Nc4 {[%emt 0:00:18]} 36. Kg3 {[%emt 0:01:25]} Na5 {[%emt 0:00:46]} 37. f4 {[%emt 0:03:06]} h6 {[%emt 0:02:08]} 38. Kg4 {[%emt 0:00:54]} Rc4 {[%emt 0:00:17]} 39. Ra6 {[%emt 0:00:30]} Rb4 {[%emt 0:00:15]} 40. h4 {[%emt 0:01:02]} Kg7 {[%emt 0:01:08]} 41. Kf3 {[%emt 0:43:35]} Kf6 {[%emt 0:42:08]} 42. g4 {[%emt 0:01:43]} Nb3 {[%emt 0:02:47]} 43. Ra8 {[%emt 0:00:29]} Na5 {[%emt 0:03:13]} 44. Rd8 {[%emt 0:02:16]} Kf7 {[%emt 0:02:51]} 45. Rd6 {[%emt 0:01:41]} Nc4 {[%emt 0:00:45]} 46. Rd7+ {[%emt 0:00:26]} Kg8 {[%emt 0:02:44]} 47. Ra7 {[%emt 0:00:38]} Na5 {[%emt 0:02:25]} 48. Ra6 {[%emt 0:04:36]} Kf7 {[%emt 0:01:09]} 49. Ra7+ {[%emt 0:00:35]} Ke6 {[%emt 0:01:01]} 50. Rg7 {[%emt 0:00:36]} Kf6 {[%emt 0:02:06]} 51. Rd7 {[%emt 0:00:40]} Nc4 {[%emt 0:02:19]} 52. Ra7 {[%emt 0:00:13]} Nd2+ {[%emt 0:02:40]} 53. Ke3 {[%emt 0:00:54]} Nf1+ {[%emt 0:01:51]} 54. Kf3 {[%emt 0:00:48]} Nh2+ {[%emt 0:01:26]} 55. Kg3 {[%emt 0:00:21]} Nf1+ {[%emt 0:00:05]} 56. Kf3 {[%emt 0:00:13]} Nd2+ {[%emt 0:00:11]} 57. Ke3 {[%emt 0:00:13]} Nc4+ {[%emt 0:01:20]} 58. Kf3 {[%emt 0:00:34]} h5 {[%emt 0:01:18]} 59. g5+ {[%emt 0:06:41]} Ke6 {[%emt 0:00:38]} 60. Rg7 {[%emt 0:01:30]} Rb3+ {[%emt 0:01:37]} 61. Ke2 {[%emt 0:04:07]} Kf5 {[%emt 0:01:01]} 62. Rf7+ {[%emt 0:00:23]} Ke4 {[%emt 0:01:50]} 63. Rf6 {[%emt 0:01:22]} Rb2+ {[%emt 0:00:37]} 64. Kd1 {[%emt 0:02:12]} Kd3 {[%emt 0:00:52]} 65. Ke1 {[%emt 0:00:49]} Ne3 {[%emt 0:02:18]} 66. Re6 {[%emt 0:00:00]} Re2# {[%emt 0:00:00]} 0-1

[Event "Fagernes Chess Open 2025"]
[Site "Fagernes"]
[Date "2025.04.17"]
[Round "6.14"]
[White "Smedsrud, Morten S"]
[Black "Jorgensen, Catherine"]
[Result "0-1"]
[Annotator "NA RC"]
[ECO "C06"]
[WhiteElo "1699"]
[BlackElo "1609"]
[PlyCount "66"]
[EventDate "2025.04.12"]
[EventCountry "NOR"]
[SourceTitle "playchess.com"]
[Source "ChessBase"]
[SourceQuality "1"]
[TimeControl "40/6000+30:2400+30"]

1. e4 {[%emt 0:00:07]} e6 {[%emt 0:04:29]} 2. d4 {[%emt 0:00:22]} d5 {[%emt 0:00:22]} 3. Nd2 {[%emt 0:00:14]} Nf6 {[%emt 0:00:24]} 4. e5 {[%emt 0:00:57]} Nfd7 {[%emt 0:00:21]} 5. Ngf3 {[%emt 0:00:28]} c5 {[%emt 0:00:21]} 6. c3 {[%emt 0:00:08]} Nc6 {[%emt 0:00:44]} 7. Bd3 {[%emt 0:00:14]} Qb6 {[%emt 0:03:19]} 8. O-O {[%emt 0:01:12]} cxd4 {[%emt 0:01:36]} 9. cxd4 {[%emt 0:00:57]} Nxd4 {[%emt 0:02:22]} 10. Nxd4 {[%emt 0:00:25]} Qxd4 {[%emt 0:01:13]} 11. Nf3 {[%emt 0:00:08]} Qb6 {[%emt 0:08:04]} 12. Qa4 {[%emt 0:00:47]} Qd8 {[%emt 0:15:33]} 13. Qg4 {[%emt 0:08:12]} h6 {[%emt 0:13:03]} 14. Be3 {[%emt 0:13:09]} b6 {[%emt 0:07:09]} 15. Rac1 {[%emt 0:11:19]} Bb7 {[%emt 0:04:02]} 16. Bd4 {[%emt 0:06:27]} Rc8 {[%emt 0:05:21]} 17. Rxc8 {[%emt 0:05:51]} Qxc8 {[%emt 0:00:33]} 18. Nh4 {[%emt 0:01:08]} Ba6 {[%emt 0:08:26]} 19. Bg6 {[%emt 0:13:46]} Bxf1 {[%emt 0:04:56]} 20. Qxe6+ {[%emt 0:00:37]} Kd8 {[%emt 0:01:33]} 21. Bxf7 {[%emt 0:01:58]} Bd3 {[%emt 0:02:16]} 22. Qe8+ {[%emt 0:19:54]} Kc7 {[%emt 0:00:08]} 23. Qe6 {[%emt 0:00:45]} Kb8 {[%emt 0:07:36]} 24. Be3 {[%emt 0:05:03]} d4 {[%emt 0:03:16]} 25. Bd2 {[%emt 0:03:24]} Bb4 {[%emt 0:01:31]} 26. Nf3 {[%emt 0:00:57]} Bxd2 {[%emt 0:03:20]} 27. Qd6+ {[%emt 0:01:53]} Qc7 {[%emt 0:00:56]} 28. Nxd2 {[%emt 0:01:08]} Qxd6 {[%emt 0:00:25]} 29. exd6 {[%emt 0:00:22]} Rc8 {[%emt 0:00:16]} 30. Nb3 {[%emt 0:00:53]} Bb1 {[%emt 0:01:18]} 31. Be6 {[%emt 0:01:34]} Bxa2 {[%emt 0:00:45]} 32. Bxd7 {[%emt 0:00:46]} Rc2 {[%emt 0:00:06]} 33. Bf5 {[%emt 0:03:15]} Bxb3 {[%emt 0:01:00]} 0-1

[Event "Fagernes Chess Open 2025"]
[Site "Fagernes"]
[Date "2025.04.17"]
[Round "6.15"]
[White "Sigvaldsen, Sebastian"]
[Black "Vatneodegard, Marie"]
[Result "1-0"]
[Annotator "NA RC"]
[ECO "D27"]
[WhiteElo "1613"]
[BlackElo "1538"]
[PlyCount "103"]
[EventDate "2025.04.12"]
[EventCountry "NOR"]
[SourceTitle "playchess.com"]
[Source "ChessBase"]
[SourceQuality "1"]
[TimeControl "40/6000+30:2400+30"]

1. d4 {[%emt 0:00:07]} d5 {[%emt 0:00:19]} 2. c4 {[%emt 0:01:05]} dxc4 {[%emt 0:00:15]} 3. Nc3 {[%emt 0:01:21]} e6 {[%emt 0:03:27]} 4. e3 {[%emt 0:01:36]} Nf6 {[%emt 0:00:13]} 5. Bxc4 {[%emt 0:00:17]} a6 {[%emt 0:00:51]} 6. Nf3 {[%emt 0:02:33]} Be7 {[%emt 0:01:46]} 7. a4 {[%emt 0:05:57]} c5 {[%emt 0:02:40]} 8. O-O {[%emt 0:04:28]} O-O {[%emt 0:01:50]} 9. b3 {[%emt 0:04:18]} Nc6 {[%emt 0:00:50]} 10. Ba3 {[%emt 0:00:29]} cxd4 {[%emt 0:08:11]} 11. Bxe7 {[%emt 0:00:24]} Qxe7 {[%emt 0:00:25]} 12. Nxd4 {[%emt 0:00:25]} Rd8 {[%emt 0:01:05]} 13. Nxc6 {[%emt 0:00:51]} bxc6 {[%emt 0:00:21]} 14. Qc2 {[%emt 0:02:58]} Bb7 {[%emt 0:05:16]} 15. Rfd1 {[%emt 0:04:48]} c5 {[%emt 0:01:20]} 16. Bd3 {[%emt 0:05:00]} g6 {[%emt 0:00:20]} 17. Ne4 {[%emt 0:03:02]} Nxe4 {[%emt 0:02:49]} 18. Bxe4 {[%emt 0:00:15]} Bxe4 {[%emt 0:08:03]} 19. Qxe4 {[%emt 0:00:25]} Rxd1+ {[%emt 0:00:11]} 20. Rxd1 {[%emt 0:00:33]} Rd8 {[%emt 0:00:04]} 21. Rd3 {[%emt 0:09:03]} Rxd3 {[%emt 0:04:40]} 22. Qxd3 {[%emt 0:00:12]} Qb7 {[%emt 0:00:09]} 23. Kf1 {[%emt 0:02:50]} Qb6 {[%emt 0:19:11]} 24. Ke2 {[%emt 0:03:18]} Kg7 {[%emt 0:01:25]} 25. Kd2 {[%emt 0:03:21]} Kg8 {[%emt 0:02:03]} 26. Kc2 {[%emt 0:03:19]} Qc6 {[%emt 0:04:45]} 27. f3 {[%emt 0:01:06]} Qc7 {[%emt 0:06:53]} 28. Qxa6 {[%emt 0:15:11]} Qxh2 {[%emt 0:05:15]} 29. Qc8+ {[%emt 0:02:01]} Kg7 {[%emt 0:00:08]} 30. a5 {[%emt 0:00:52]} Qxg2+ {[%emt 0:00:17]} 31. Kd3 {[%emt 0:01:16]} Qf1+ {[%emt 0:00:58]} 32. Kd2 {[%emt 0:01:55]} Qf2+ {[%emt 0:00:31]} 33. Kd3 {[%emt 0:00:13]} Qf1+ {[%emt 0:00:14]} 34. Ke4 {[%emt 0:01:32]} Qb1+ {[%emt 0:08:08]} 35. Kf4 {[%emt 0:01:06]} Qxb3 {[%emt 0:04:21]} 36. a6 {[%emt 0:00:16]} Qc4+ {[%emt 0:00:39]} 37. Kg3 {[%emt 0:00:28]} g5 {[%emt 0:05:04]} 38. a7 {[%emt 0:00:41]} Qh4+ {[%emt 0:00:20]} 39. Kg2 {[%emt 0:00:12]} Qe1 {[%emt 0:01:11]} 40. Qa6 {[%emt 0:07:29]} Qd2+ {[%emt 0:04:18]} 41. Kf1 {[%emt 0:40:14]} Qd1+ {[%emt 0:40:33]} 42. Kf2 {[%emt 0:00:08]} Qh1 {[%emt 0:01:27]} 43. a8=Q {[%emt 0:00:41]} Qh2+ {[%emt 0:00:15]} 44. Ke1 {[%emt 0:00:13]} Qg1+ {[%emt 0:01:55]} 45. Kd2 {[%emt 0:00:21]} Qh2+ {[%emt 0:00:38]} 46. Qe2 {[%emt 0:00:30]} Qd6+ {[%emt 0:00:16]} 47. Kc1 {[%emt 0:00:46]} Kh6 {[%emt 0:04:14]} 48. Qe4 {[%emt 0:01:56]} f6 {[%emt 0:01:22]} 49. Q2c4 {[%emt 0:01:17]} Qh2 {[%emt 0:02:35]} 50. Qxc5 {[%emt 0:01:22]} Qg1+ {[%emt 0:00:09]} 51. Kb2 {[%emt 0:00:11]} Qf2+ {[%emt 0:00:40]} 52. Qcc2 {[%emt 0:00:13]} 1-0

[Event "Fagernes Chess Open 2025"]
[Site "Fagernes"]
[Date "2025.04.17"]
[Round "6.16"]
[White "Nebell, Anne Grete"]
[Black "Gilsdottir, Sara"]
[Result "0-1"]
[Annotator "NA RC"]
[ECO "B13"]
[WhiteElo "1561"]
[BlackElo "1738"]
[PlyCount "102"]
[EventDate "2025.04.12"]
[EventCountry "NOR"]
[SourceTitle "playchess.com"]
[Source "ChessBase"]
[SourceQuality "1"]
[TimeControl "40/6000+30:2400+30"]

1. e4 {[%emt 0:00:06]} c6 {[%emt 0:00:22]} 2. d4 {[%emt 0:00:07]} d5 {[%emt 0:00:17]} 3. exd5 {[%emt 0:00:12]} cxd5 {[%emt 0:00:08]} 4. Bd3 {[%emt 0:00:09]} Nf6 {[%emt 0:00:47]} 5. c3 {[%emt 0:00:32]} Nc6 {[%emt 0:02:57]} 6. Bf4 {[%emt 0:01:01]} e6 {[%emt 0:01:44]} 7. Nf3 {[%emt 0:02:17]} Be7 {[%emt 0:01:06]} 8. O-O {[%emt 0:01:27]} O-O {[%emt 0:00:33]} 9. Ne5 {[%emt 0:04:07]} Nxe5 {[%emt 0:06:06]} 10. Bxe5 {[%emt 0:01:04]} Nd7 {[%emt 0:08:29]} 11. Qh5 {[%emt 0:13:23]} g6 {[%emt 0:14:07]} 12. Qe2 {[%emt 0:00:42]} Nxe5 {[%emt 0:00:30]} 13. Qxe5 {[%emt 0:01:35]} Bf6 {[%emt 0:01:42]} 14. Qg3 {[%emt 0:00:54]} Bd7 {[%emt 0:03:33]} 15. Nd2 {[%emt 0:02:51]} Rc8 {[%emt 0:05:18]} 16. Nf3 {[%emt 0:01:34]} Qc7 {[%emt 0:05:02]} 17. Ne5 {[%emt 0:03:32]} Bg7 {[%emt 0:03:05]} 18. Qe3 {[%emt 0:06:13]} b5 {[%emt 0:05:13]} 19. h4 {[%emt 0:03:41]} f6 {[%emt 0:07:00]} 20. Nxd7 {[%emt 0:06:32]} Qxd7 {[%emt 0:00:20]} 21. Qe2 {[%emt 0:01:33]} a6 {[%emt 0:01:14]} 22. h5 {[%emt 0:11:28]} g5 {[%emt 0:10:31]} 23. a4 {[%emt 0:05:33]} e5 {[%emt 0:01:53]} 24. axb5 {[%emt 0:01:44]} e4 {[%emt 0:00:42]} 25. Bc2 {[%emt 0:00:37]} Qxb5 {[%emt 0:03:36]} 26. Qxb5 {[%emt 0:01:40]} axb5 {[%emt 0:00:05]} 27. Rfe1 {[%emt 0:02:00]} f5 {[%emt 0:00:44]} 28. Bb3 {[%emt 0:00:31]} Rfd8 {[%emt 0:00:23]} 29. Ra5 {[%emt 0:02:29]} Rb8 {[%emt 0:00:39]} 30. Rea1 {[%emt 0:01:58]} Kf8 {[%emt 0:07:02]} 31. Bd1 {[%emt 0:03:38]} b4 {[%emt 0:00:53]} 32. Rc5 {[%emt 0:06:07]} bxc3 {[%emt 0:01:56]} 33. bxc3 {[%emt 0:01:13]} h6 {[%emt 0:04:31]} 34. Rc7 {[%emt 0:06:07]} Ra8 {[%emt 0:03:06]} 35. Rxa8 {[%emt 0:04:40]} Rxa8 {[%emt 0:00:13]} 36. Bb3 {[%emt 0:00:59]} Ra1+ {[%emt 0:03:08]} 37. Kh2 {[%emt 0:00:09]} Bf6 {[%emt 0:06:14]} 38. Bxd5 {[%emt 0:01:50]} Be7 {[%emt 0:00:14]} 39. Rc8+ {[%emt 0:02:27]} Kg7 {[%emt 0:00:22]} 40. g3 {[%emt 0:04:31]} Rc1 {[%emt 0:03:20]} 41. Rg8+ {[%emt 0:41:49]} Kh7 {[%emt 0:40:40]} 42. Rc8 {[%emt 0:00:56]} Kg7 {[%emt 0:00:58]} 43. Rc6 {[%emt 0:05:28]} Rc2 {[%emt 0:00:00]} 44. Kg1 {[%emt 0:00:00]} Rc1+ {[%emt 0:00:00]} 45. Kg2 {[%emt 0:00:00]} Rc2 {[%emt 0:00:00]} 46. Rg6+ {[%emt 0:00:00]} Kh7 {[%emt 0:00:00]} 47. c4 {[%emt 0:00:00]} e3 {[%emt 0:00:00]} 48. Re6 {[%emt 0:00:00]} Rxf2+ {[%emt 0:00:00]} 49. Kg1 {[%emt 0:00:00]} Bb4 {[%emt 0:00:00]} 50. Rxe3 {[%emt 0:00:00]} Rd2 {[%emt 0:00:00]} 51. Re7+ {[%emt 0:00:00]} Bxe7 {[%emt 0:00:00]} 0-1

[Event "Fagernes Chess Open 2025"]
[Site "Fagernes"]
[Date "2025.04.17"]
[Round "6.17"]
[White "Wen, Liana"]
[Black "Warstad, Leif E"]
[Result "1-0"]
[Annotator "NA RC"]
[ECO "B12"]
[WhiteElo "1404"]
[BlackElo "1606"]
[PlyCount "59"]
[EventDate "2025.04.12"]
[EventCountry "NOR"]
[SourceTitle "playchess.com"]
[Source "ChessBase"]
[SourceQuality "1"]
[TimeControl "40/6000+30:2400+30"]

1. e4 {[%emt 0:03:08]} c6 {[%emt 0:00:06]} 2. d4 {[%emt 0:00:25]} d5 {[%emt 0:00:06]} 3. e5 {[%emt 0:01:08]} Bf5 {[%emt 0:00:08]} 4. Be2 {[%emt 0:03:36]} Nd7 {[%emt 0:01:41]} 5. c3 {[%emt 0:01:51]} e6 {[%emt 0:01:25]} 6. Be3 {[%emt 0:04:22]} c5 {[%emt 0:05:48]} 7. dxc5 {[%emt 0:02:03]} Bxc5 {[%emt 0:00:18]} 8. Bxc5 {[%emt 0:04:46]} Nxc5 {[%emt 0:00:10]} 9. Bb5+ {[%emt 0:00:54]} Nd7 {[%emt 0:00:09]} 10. Nd2 {[%emt 0:02:47]} Ne7 {[%emt 0:00:13]} 11. Qe2 {[%emt 0:00:57]} Nc6 {[%emt 0:02:24]} 12. Ngf3 {[%emt 0:04:56]} Qc7 {[%emt 0:05:31]} 13. Bxc6 {[%emt 0:02:41]} Qxc6 {[%emt 0:01:01]} 14. Nd4 {[%emt 0:02:01]} Qc7 {[%emt 0:00:37]} 15. g4 {[%emt 0:01:26]} Bg6 {[%emt 0:00:20]} 16. f4 {[%emt 0:01:03]} h6 {[%emt 0:00:38]} 17. Nb5 {[%emt 0:02:24]} Qb6 {[%emt 0:04:27]} 18. Nd6+ {[%emt 0:00:52]} Ke7 {[%emt 0:01:02]} 19. Nb3 {[%emt 0:02:14]} Rhf8 {[%emt 0:04:23]} 20. f5 {[%emt 0:01:57]} Bh7 {[%emt 0:01:48]} 21. O-O-O {[%emt 0:06:07]} Nxe5 {[%emt 0:11:18]} 22. Qxe5 {[%emt 0:02:02]} Qxd6 {[%emt 0:00:13]} 23. Qxg7 {[%emt 0:02:18]} Qf4+ {[%emt 0:02:48]} 24. Kb1 {[%emt 0:00:13]} Rh8 {[%emt 0:02:20]} 25. Rhe1 {[%emt 0:01:24]} Bxf5+ {[%emt 0:11:10]} 26. gxf5 {[%emt 0:00:26]} Qxf5+ {[%emt 0:00:07]} 27. Ka1 {[%emt 0:00:19]} Rag8 {[%emt 0:03:39]} 28. Qd4 {[%emt 0:00:54]} b6 {[%emt 0:00:59]} 29. Qb4+ {[%emt 0:00:56]} Ke8 {[%emt 0:01:36]} 30. Qa4+ {[%emt 0:01:05]} 1-0